fUSD/lending_fUSD_20250629
["ID","MTS","AMOUNT","RATE_DAILY","PERIOD"]
[368579272,1751214640865,-490.0,0.00021917,2]
[368579274,1751214640875,-490.0,0.00021917,2]
[368579277,1751214640891,-490.0,0.00021917,2]
[368579279,1751214640902,-490.0,0.00021917,2]
[368579281,1751214640912,-156.214773,0.00021917,2]
[368579283,1751214640924,-490.0,0.00021917,2]
[368579286,1751214640935,-503.23002652,0.00021917,2]
[368579288,1751214640946,-580.95,0.00021917,2]
[368579290,1751214640956,-490.0,0.00021917,2]
[368579292,1751214640967,-464.19742774,0.00021917,2]
[368579294,1751214640978,-490.0,0.00021917,2]
[368579296,1751214640988,-490.0,0.00021917,2]
[368579298,1751214641000,-490.0,0.00021917,2]
[368579300,1751214641011,-490.0,0.00021917,2]
[368579302,1751214641022,-490.0,0.00021917,2]
[368579305,1751214641034,-490.0,0.00021917,2]
[368579307,1751214641045,-490.0,0.00021917,2]
[368579309,1751214641057,-493.32490657,0.00021917,2]
[368579311,1751214641069,-490.0,0.00021917,2]
[368579313,1751214641081,-742.44,0.00021917,2]
[368579355,1751214641489,-490.0,0.00021917,2]
[368579358,1751214641514,-1827.3,0.00021917,2]
[368579360,1751214641524,-490.0,0.00021917,2]
[368579362,1751214641533,-490.0,0.00021917,2]
[368579364,1751214641543,-1159.62,0.00021917,2]
[368579366,1751214641553,-490.0,0.00021917,2]
[368579368,1751214641562,-297.03649342,0.00021917,2]
[368579370,1751214641572,-686.1,0.00021917,2]
[368579372,1751214641583,-490.0,0.00021917,2]
[368579374,1751214641593,-596.71749016,0.00021917,2]
[368579376,1751214641602,-1000.0,0.00021917,2]
[368579378,1751214641611,-490.0,0.00021917,2]
[368579380,1751214641621,-490.0,0.00021917,2]
[368579382,1751214641631,-490.0,0.00021917,2]
[368579384,1751214641640,-490.0,0.00021917,2]
[368579386,1751214641650,-490.0,0.00021917,2]
[368579388,1751214641659,-493.96511754,0.00021917,2]
[368579390,1751214641670,-490.0,0.00021917,2]
[368579392,1751214641679,-530.8,0.00021917,2]
[368579394,1751214641688,-490.0,0.00021917,2]
[368579396,1751214641698,-498.28040211,0.00021917,2]
[368579399,1751214641708,-420.0,0.00021917,2]
[368579401,1751214641717,-490.0,0.00021917,2]
[368579403,1751214641727,-490.0,0.00021917,2]
[368579405,1751214641736,-586.76,0.00021917,2]
[368579407,1751214641745,-490.0,0.00021917,2]
[368579409,1751214641755,-490.0,0.00021917,2]
[368579411,1751214641764,-476.55981003,0.00021917,2]
[368579413,1751214641774,-500.0,0.00021917,2]
[368579415,1751214641784,-500.0,0.00021917,2]
[368579417,1751214641794,-500.0,0.00021917,2]
[368579419,1751214641803,-276.56,0.00021917,2]
[368579421,1751214641816,-1095.49,0.00021917,2]
[368579423,1751214641825,-490.0,0.00021917,2]
[368579425,1751214641836,-691.91,0.00021917,2]
[368579427,1751214641846,-555.42,0.00021917,2]
[368579430,1751214641856,-696.54,0.00021917,2]
[368579432,1751214641866,-490.0,0.00021917,2]
[368579434,1751214641875,-490.0,0.00021917,2]
[368579436,1751214641884,-490.0,0.00021917,2]
[368579438,1751214641894,-490.0,0.00021917,2]
[368579440,1751214641904,-490.0,0.00021917,2]
[368579442,1751214641915,-490.0,0.00021917,2]
[368579444,1751214641924,-490.0,0.00021917,2]
[368579446,1751214641934,-731.74,0.00021917,2]
[368579448,1751214641943,-490.0,0.00021917,2]
[368579450,1751214641953,-438.40124712,0.00021917,2]
[368579452,1751214641962,-490.0,0.00021917,2]
[368579454,1751214641971,-500.0,0.00021917,2]
[368579456,1751214641981,-476.82891858,0.00021917,2]
[368579458,1751214641991,-490.0,0.00021917,2]
[368579460,1751214642001,-490.0,0.00021917,2]
[368579462,1751214642012,-490.0,0.00021917,2]
[368579464,1751214642022,-490.0,0.00021917,2]
[368579466,1751214642031,-490.0,0.00021917,2]
[368579468,1751214642042,-490.0,0.00021917,2]
[368579470,1751214642051,-561.65,0.00021917,2]
[368579472,1751214642061,-515.07,0.00021917,2]
[368579474,1751214642070,-490.0,0.00021917,2]
[368579476,1751214642081,-422.11270134,0.00021917,2]
[368579478,1751214642090,-490.0,0.00021917,2]
[368579480,1751214642100,-490.0,0.00021917,2]
[368579482,1751214642110,-200.0,0.00021917,2]
[368579484,1751214642119,-351.94290459,0.00021917,2]
[368579487,1751214642129,-490.0,0.00021917,2]
[368579489,1751214642139,-490.0,0.00021917,2]
[368579491,1751214642149,-490.0,0.00021917,2]
[368579493,1751214642159,-898.22,0.00021917,2]
[368579495,1751214642168,-490.0,0.00021917,2]
[368579497,1751214642179,-490.0,0.00021917,2]
[368579499,1751214642188,-186.45885594,0.00021917,2]
[368579501,1751214642199,-490.0,0.00021917,2]
[368579503,1751214642210,-490.0,0.00021917,2]
[368579505,1751214642220,-490.0,0.00021917,2]
[368579507,1751214642230,-490.0,0.00021917,2]
[368579509,1751214642240,-490.0,0.00021917,2]
[368579511,1751214642249,-490.0,0.00021917,2]
[368579513,1751214642259,-490.0,0.00021917,2]
[368579515,1751214642269,-490.0,0.00021917,2]
[368579517,1751214642279,-818.38,0.00021917,2]
[368579520,1751214642293,-490.0,0.00021917,2]
[368579522,1751214642304,-490.0,0.00021917,2]
[368579524,1751214642313,-1068.03,0.00021917,2]
[368579526,1751214642323,-491.95301135,0.00021917,2]
[368579528,1751214642333,-490.0,0.00021917,2]
[368579530,1751214642343,-490.0,0.00021917,2]
[368579532,1751214642353,-490.0,0.00021917,2]
[368579534,1751214642363,-490.0,0.00021917,2]
[368579536,1751214642373,-684.25,0.00021917,2]
[368579538,1751214642382,-490.0,0.00021917,2]
[368579540,1751214642392,-490.0,0.00021917,2]
[368579542,1751214642402,-490.0,0.00021917,2]
[368579544,1751214642412,-696.46,0.00021917,2]
[368579546,1751214642423,-490.0,0.00021917,2]
[368579548,1751214642432,-945.38,0.00021917,2]
[368579550,1751214642442,-1167.05,0.00021917,2]
[368579552,1751214642452,-490.0,0.00021917,2]
[368579554,1751214642462,-490.0,0.00021917,2]
[368579556,1751214642472,-490.0,0.00021917,2]
[368579558,1751214642481,-490.0,0.00021917,2]
[368579560,1751214642491,-490.0,0.00021917,2]
[368579563,1751214642501,-490.0,0.00021917,2]
[368579565,1751214642511,-490.0,0.00021917,2]
[368579567,1751214642520,-490.0,0.00021917,2]
[368579569,1751214642530,-490.0,0.00021917,2]
[368579571,1751214642541,-490.0,0.00021917,2]
[368579574,1751214642550,-490.0,0.00021917,2]
[368579576,1751214642560,-871.09,0.00021917,2]
[368579578,1751214642569,-490.0,0.00021917,2]
[368579580,1751214642580,-490.0,0.00021917,2]
[368579582,1751214642589,-491.61318806,0.00021917,2]
[368579584,1751214642598,-527.94,0.00021917,2]
[368579586,1751214642608,-755.33,0.00021917,2]
[368579588,1751214642617,-490.0,0.00021917,2]
[368579590,1751214642627,-490.0,0.00021917,2]
[368579592,1751214642636,-490.0,0.00021917,2]
[368579594,1751214642646,-490.0,0.00021917,2]
[368579596,1751214642656,-490.0,0.00021917,2]
[368579598,1751214642666,-490.0,0.00021917,2]
[368579600,1751214642676,-490.0,0.00021917,2]
[368579602,1751214642686,-490.0,0.00021917,2]
[368579604,1751214642695,-490.0,0.00021917,2]
[368579606,1751214642706,-490.0,0.00021917,2]
[368579608,1751214642715,-913.18,0.00021917,2]
[368579610,1751214642725,-334.85475546,0.00021917,2]
[368579612,1751214642734,-610.27870533,0.00021917,2]
[368579614,1751214642744,-288.52700229,0.00021917,2]
[368579616,1751214642754,-490.0,0.00021917,2]
[368579618,1751214642763,-490.0,0.00021917,2]
[368579620,1751214642773,-490.0,0.00021917,2]
[368579622,1751214642782,-490.0,0.00021917,2]
[368579624,1751214642792,-490.0,0.00021917,2]
[368579626,1751214642801,-490.0,0.00021917,2]
[368579628,1751214642811,-490.0,0.00021917,2]
[368579630,1751214642820,-490.0,0.00021917,2]
[368579632,1751214642831,-490.0,0.00021917,2]
[368579634,1751214642840,-490.0,0.00021917,2]
[368579636,1751214642850,-630.25,0.00021917,2]
[368579638,1751214642859,-1505.26,0.00021917,2]
[368579641,1751214642869,-151.0,0.00021917,2]
[368579643,1751214642878,-502.56,0.00021917,2]
[368579645,1751214642888,-490.0,0.00021917,2]
[368579647,1751214642897,-490.0,0.00021917,2]
[368579649,1751214642908,-700.89,0.00021917,2]
[368579651,1751214642917,-490.0,0.00021917,2]
[368579653,1751214642927,-490.0,0.00021917,2]
[368579655,1751214642937,-490.0,0.00021917,2]
[368579657,1751214642947,-933.25,0.00021917,2]
[368579659,1751214642956,-1050.09,0.00021917,2]
[368579661,1751214642965,-588.0,0.00021917,2]
[368579663,1751214642974,-490.0,0.00021917,2]
[368579665,1751214642983,-490.0,0.00021917,2]
[368579667,1751214642993,-490.0,0.00021917,2]
[368579669,1751214643002,-1144.73,0.00021917,2]
[368579671,1751214643011,-1487.89,0.00021917,2]
[368579673,1751214643021,-490.0,0.00021917,2]
[368579675,1751214643030,-604.30718522,0.00021917,2]
[368579677,1751214643039,-490.0,0.00021917,2]
[368579679,1751214643049,-490.0,0.00021917,2]
[368579681,1751214643058,-490.0,0.00021917,2]
[368579683,1751214643067,-490.0,0.00021917,2]
[368579685,1751214643077,-152.904368,0.00021917,2]
[368579687,1751214643087,-575.06,0.00021917,2]
[368579689,1751214643096,-490.0,0.00021917,2]
[368579691,1751214643106,-490.0,0.00021917,2]
[368579693,1751214643115,-490.0,0.00021917,2]
[368579695,1751214643124,-490.0,0.00021917,2]
[368579697,1751214643134,-490.0,0.00021917,2]
[368579699,1751214643143,-490.0,0.00021917,2]
[368579701,1751214643152,-490.0,0.00021917,2]
[368579703,1751214643162,-1052.94,0.00021917,2]
[368579705,1751214643174,-490.0,0.00021917,2]
[368579707,1751214643183,-625.83,0.00021917,2]
[368579709,1751214643193,-490.0,0.00021917,2]
[368579711,1751214643203,-1363.46,0.00021917,2]
[368579713,1751214643213,-336.49364716,0.00021917,2]
[368579715,1751214643222,-517.36,0.00021917,2]
[368579717,1751214643231,-490.0,0.00021917,2]
[368579719,1751214643241,-490.0,0.00021917,2]
[368579721,1751214643251,-490.0,0.00021917,2]
[368579723,1751214643262,-276.38129,0.00021917,2]
[368579726,1751214643271,-490.0,0.00021917,2]
[368579728,1751214643281,-712.01,0.00021917,2]
[368579730,1751214643293,-490.0,0.00021917,2]
[368579733,1751214643303,-490.0,0.00021917,2]
[368579735,1751214643313,-1214.39,0.00021917,2]
[368579738,1751214643322,-690.92,0.00021917,2]
[368579741,1751214643333,-490.0,0.00021917,2]
[368579742,1751214643343,-704.32,0.00021917,2]
[368579745,1751214643353,-490.0,0.00021917,2]
[368579747,1751214643364,-490.0,0.00021917,2]
[368579749,1751214643373,-490.0,0.00021917,2]
[368579751,1751214643383,-490.0,0.00021917,2]
[368579753,1751214643393,-490.0,0.00021917,2]
[368579755,1751214643402,-490.0,0.00021917,2]
[368579757,1751214643411,-490.0,0.00021917,2]
[368579759,1751214643421,-558.57,0.00021917,2]
[368579761,1751214643431,-490.0,0.00021917,2]
[368579762,1751214643441,-490.0,0.00021917,2]
[368579764,1751214643451,-490.0,0.00021917,2]
[368579766,1751214643461,-490.0,0.00021917,2]
[368579768,1751214643470,-770.18,0.00021917,2]
[368579771,1751214643480,-506.51663546,0.00021917,2]
[368579772,1751214643490,-501.5,0.00021917,2]
[368579774,1751214643500,-490.0,0.00021917,2]
[368579777,1751214643509,-151.0,0.00021917,2]
[368579779,1751214643519,-1080.14,0.00021917,2]
[368579781,1751214643529,-490.0,0.00021917,2]
[368579783,1751214643538,-490.0,0.00021917,2]
[368579785,1751214643548,-606.22,0.00021917,2]
[368579787,1751214643557,-490.0,0.00021917,2]
[368579789,1751214643567,-490.0,0.00021917,2]
[368579791,1751214643578,-490.0,0.00021917,2]
[368579793,1751214643588,-490.0,0.00021917,2]
[368579795,1751214643597,-490.0,0.00021917,2]
[368579797,1751214643606,-506.78,0.00021917,2]
[368579799,1751214643617,-490.0,0.00021917,2]
[368579801,1751214643626,-953.28,0.00021917,2]
[368579803,1751214643636,-490.0,0.00021917,2]
[368579805,1751214643646,-490.0,0.00021917,2]
[368579807,1751214643655,-490.0,0.00021917,2]
[368579809,1751214643664,-490.0,0.00021917,2]
[368579811,1751214643674,-638.56,0.00021917,2]
[368579813,1751214643683,-490.0,0.00021917,2]
[368579815,1751214643693,-490.0,0.00021917,2]
[368579817,1751214643703,-595.03,0.00021917,2]
[368579819,1751214643712,-490.0,0.00021917,2]
[368579821,1751214643721,-491.84373018,0.00021917,2]
[368579823,1751214643731,-490.0,0.00021917,2]
[368579826,1751214643741,-490.0,0.00021917,2]
[368579828,1751214643751,-490.0,0.00021917,2]
[368579830,1751214643760,-490.0,0.00021917,2]
[368579832,1751214643770,-490.0,0.00021917,2]
[368579834,1751214643779,-490.0,0.00021917,2]
[368579836,1751214643789,-340.25774732,0.00021917,2]
[368579838,1751214643799,-496.63,0.00021917,2]
[368579840,1751214643809,-490.0,0.00021917,2]
[368579842,1751214643819,-490.0,0.00021917,2]
[368579844,1751214643829,-490.0,0.00021917,2]
[368579846,1751214643838,-1120.6,0.00021917,2]
[368579848,1751214643847,-490.0,0.00021917,2]
[368579850,1751214643857,-490.0,0.00021917,2]
[368579852,1751214643866,-490.0,0.00021917,2]
[368579855,1751214643876,-490.0,0.00021917,2]
[368579876,1751214644056,-330.44831067,0.00021917,2]
[368579878,1751214644068,-490.0,0.00021917,2]
[368579880,1751214644079,-668.42,0.00021917,2]
[368579882,1751214644089,-837.56,0.00021917,2]
[368579884,1751214644099,-490.0,0.00021917,2]
[368579886,1751214644109,-490.0,0.00021917,2]
[368579888,1751214644119,-490.0,0.00021917,2]
[368579890,1751214644128,-490.0,0.00021917,2]
[368579892,1751214644137,-490.0,0.00021917,2]
[368579894,1751214644147,-490.0,0.00021917,2]
[368579896,1751214644156,-490.0,0.00021917,2]
[368579898,1751214644165,-490.79944295,0.00021917,2]
[368579900,1751214644175,-935.71,0.00021917,2]
[368579902,1751214644184,-490.0,0.00021917,2]
[368579904,1751214644194,-490.0,0.00021917,2]
[368579906,1751214644203,-490.0,0.00021917,2]
[368579908,1751214644213,-490.0,0.00021917,2]
[368579910,1751214644223,-490.0,0.00021917,2]
[368579912,1751214644232,-490.0,0.00021917,2]
[368579914,1751214644241,-521.67,0.00021917,2]
[368579916,1751214644250,-490.0,0.00021917,2]
[368579918,1751214644260,-490.0,0.00021917,2]
[368579920,1751214644269,-272.723865,0.00021917,2]
[368579922,1751214644278,-490.0,0.00021917,2]
[368579924,1751214644291,-494.76,0.00021917,2]
[368579926,1751214644300,-1233.39,0.00021917,2]
[368579928,1751214644309,-1127.36,0.00021917,2]
[368579930,1751214644319,-633.4028169,0.00021917,2]
[368579932,1751214644330,-490.0,0.00021917,2]
[368579934,1751214644339,-490.0,0.00021917,2]
[368579936,1751214644348,-490.0,0.00021917,2]
[368579938,1751214644359,-490.0,0.00021917,2]
[368579940,1751214644369,-490.0,0.00021917,2]
[368579942,1751214644378,-490.0,0.00021917,2]
[368579944,1751214644387,-490.0,0.00021917,2]
[368579946,1751214644396,-490.79767443,0.00021917,2]
[368579948,1751214644406,-490.0,0.00021917,2]
[368579950,1751214644415,-490.0,0.00021917,2]
[368579952,1751214644424,-490.0,0.00021917,2]
[368579954,1751214644433,-490.0,0.00021917,2]
[368579956,1751214644443,-490.0,0.00021917,2]
[368579958,1751214644452,-179.90077246,0.00021917,2]
[368579960,1751214644462,-490.0,0.00021917,2]
[368579962,1751214644471,-490.0,0.00021917,2]
[368579964,1751214644481,-1307.39,0.00021917,2]
[368579966,1751214644491,-808.13,0.00021917,2]
[368579968,1751214644500,-490.0,0.00021917,2]
[368579970,1751214644510,-758.62,0.00021917,2]
[368579972,1751214644519,-1176.75,0.00021917,2]
[368579974,1751214644529,-490.0,0.00021917,2]
[368579976,1751214644539,-423.48291578,0.00021917,2]
[368579978,1751214644548,-490.0,0.00021917,2]
[368579980,1751214644558,-490.0,0.00021917,2]
[368579982,1751214644567,-490.0,0.00021917,2]
[368579984,1751214644577,-490.0,0.00021917,2]
[368579986,1751214644587,-490.0,0.00021917,2]
[368579988,1751214644597,-490.0,0.00021917,2]
[368579990,1751214644607,-490.0,0.00021917,2]
[368579992,1751214644616,-1063.95,0.00021917,2]
[368579994,1751214644626,-490.0,0.00021917,2]
[368579996,1751214644635,-639.55,0.00021917,2]
[368579998,1751214644644,-490.0,0.00021917,2]
[368580000,1751214644653,-460.8941265,0.00021917,2]
[368580002,1751214644663,-490.0,0.00021917,2]
[368580004,1751214644672,-490.0,0.00021917,2]
[368580006,1751214644682,-490.0,0.00021917,2]
[368580008,1751214644691,-490.0,0.00021917,2]
[368580010,1751214644700,-490.0,0.00021917,2]
[368580012,1751214644710,-490.0,0.00021917,2]
[368580014,1751214644719,-490.0,0.00021917,2]
[368580016,1751214644728,-490.0,0.00021917,2]
[368580018,1751214644738,-490.0,0.00021917,2]
[368580020,1751214644751,-565.3,0.00021917,2]
[368580022,1751214644760,-490.0,0.00021917,2]
[368580024,1751214644769,-490.0,0.00021917,2]
[368580026,1751214644778,-490.0,0.00021917,2]
[368580028,1751214644788,-490.0,0.00021917,2]
[368580030,1751214644797,-885.13,0.00021917,2]
[368580031,1751214644806,-633.87,0.00021917,2]
[368580033,1751214644816,-490.0,0.00021917,2]
[368580035,1751214644825,-815.47,0.00021917,2]
[368580037,1751214644837,-490.0,0.00021917,2]
[368580039,1751214644847,-151.0,0.00021917,2]
[368580041,1751214644857,-490.0,0.00021917,2]
[368580043,1751214644867,-490.0,0.00021917,2]
[368580045,1751214644876,-490.0,0.00021917,2]
[368580047,1751214644886,-490.0,0.00021917,2]
[368580049,1751214644896,-1331.97,0.00021917,2]
[368580052,1751214644906,-1500.0,0.00021917,2]
[368580054,1751214644915,-490.0,0.00021917,2]
[368580056,1751214644925,-490.0,0.00021917,2]
[368580057,1751214644934,-490.0,0.00021917,2]
[368580059,1751214644943,-490.0,0.00021917,2]
[368580061,1751214644953,-155.888235,0.00021917,2]
[368580063,1751214644963,-157.12761131,0.00021917,2]
[368580065,1751214644972,-308.112715,0.00021917,2]
[368580067,1751214644984,-490.0,0.00021917,2]
[368580070,1751214644994,-490.0,0.00021917,2]
[368580072,1751214645004,-909.63,0.00021917,2]
[368580073,1751214645013,-490.0,0.00021917,2]
[368580075,1751214645024,-490.0,0.00021917,2]
[368580077,1751214645034,-2071.58,0.00021917,2]
[368580079,1751214645044,-490.0,0.00021917,2]
[368580081,1751214645054,-490.0,0.00021917,2]
[368580083,1751214645063,-308.112715,0.00021917,2]
[368580086,1751214645075,-490.0,0.00021917,2]
[368580087,1751214645085,-490.0,0.00021917,2]
[368580089,1751214645094,-490.0,0.00021917,2]
[368580091,1751214645104,-490.0,0.00021917,2]
[368580093,1751214645113,-490.0,0.00021917,2]
[368580095,1751214645123,-490.0,0.00021917,2]
[368580097,1751214645132,-490.0,0.00021917,2]
[368580099,1751214645141,-151.0,0.00021917,2]
[368580101,1751214645151,-490.0,0.00021917,2]
[368580103,1751214645160,-490.0,0.00021917,2]
[368580105,1751214645169,-623.0374763,0.00021917,2]
[368580107,1751214645178,-490.0,0.00021917,2]
[368580109,1751214645187,-490.0,0.00021917,2]
[368580111,1751214645195,-410.57404717,0.00021917,2]
[368580113,1751214645205,-490.0,0.00021917,2]
[368580115,1751214645214,-490.0,0.00021917,2]
[368580117,1751214645223,-490.0,0.00021917,2]
[368580119,1751214645232,-490.0,0.00021917,2]
[368580121,1751214645241,-490.0,0.00021917,2]
[368580123,1751214645251,-490.0,0.00021917,2]
[368580125,1751214645260,-490.0,0.00021917,2]
[368580126,1751214645269,-575.67,0.00021917,2]
[368580128,1751214645278,-490.0,0.00021917,2]
[368580130,1751214645291,-490.0,0.00021917,2]
[368580132,1751214645301,-493.04558855,0.00021917,2]
[368580134,1751214645311,-490.0,0.00021917,2]
[368580136,1751214645320,-151.0,0.00021917,2]
[368580138,1751214645332,-490.0,0.00021917,2]
[368580140,1751214645341,-490.0,0.00021917,2]
[368580142,1751214645350,-490.0,0.00021917,2]
[368580144,1751214645359,-490.0,0.00021917,2]
[368580146,1751214645369,-490.0,0.00021917,2]
[368580148,1751214645379,-490.0,0.00021917,2]
[368580150,1751214645388,-490.0,0.00021917,2]
[368580152,1751214645397,-1490.81,0.00021917,2]
[368580154,1751214645406,-151.0,0.00021917,2]
[368580156,1751214645415,-1982.64,0.00021917,2]
[368580158,1751214645424,-490.0,0.00021917,2]
[368580160,1751214645434,-200.0,0.00021917,2]
[368580162,1751214645443,-490.0,0.00021917,2]
[368580164,1751214645452,-490.0,0.00021917,2]
[368580166,1751214645461,-725.44,0.00021917,2]
[368580167,1751214645470,-490.0,0.00021917,2]
[368580169,1751214645480,-490.0,0.00021917,2]
[368580171,1751214645489,-490.0,0.00021917,2]
[368580173,1751214645498,-569.16,0.00021917,2]
[368580175,1751214645508,-490.0,0.00021917,2]
[368580178,1751214645517,-490.0,0.00021917,2]
[368580180,1751214645527,-490.0,0.00021917,2]
[368580182,1751214645536,-490.0,0.00021917,2]
[368580184,1751214645545,-490.0,0.00021917,2]
[368580186,1751214645554,-595.47523367,0.00021917,2]
[368580188,1751214645564,-1947.68,0.00021917,2]
[368580190,1751214645574,-1876.49,0.00021917,2]
[368580192,1751214645584,-630.0,0.00021917,2]
[368580194,1751214645594,-490.0,0.00021917,2]
[368580196,1751214645603,-908.08,0.00021917,2]
[368580197,1751214645612,-490.0,0.00021917,2]
[368580198,1751214645621,-490.0,0.00021917,2]
[368580199,1751214645630,-171.70786693,0.00021917,2]
[368580200,1751214645639,-649.44,0.00021917,2]
[368580201,1751214645648,-490.0,0.00021917,2]
[368580202,1751214645657,-490.0,0.00021917,2]
[368580203,1751214645667,-1126.55,0.00021917,2]
[368580204,1751214645676,-1211.2,0.00021917,2]
[368580205,1751214645684,-490.0,0.00021917,2]
[368580206,1751214645693,-1382.87,0.00021917,2]
[368580207,1751214645702,-490.0,0.00021917,2]
[368580208,1751214645712,-490.0,0.00021917,2]
[368580209,1751214645721,-490.0,0.00021917,2]
[368580210,1751214645731,-752.8,0.00021917,2]
[368580211,1751214645741,-490.0,0.00021917,2]
[368580212,1751214645751,-490.0,0.00021917,2]
[368580213,1751214645760,-490.0,0.00021917,2]
[368580215,1751214645770,-490.0,0.00021917,2]
[368580217,1751214645779,-490.0,0.00021917,2]
[368580219,1751214645788,-600.18,0.00021917,2]
[368580221,1751214645797,-490.0,0.00021917,2]
[368580223,1751214645807,-1824.22,0.00021917,2]
[368580225,1751214645816,-490.0,0.00021917,2]
[368580227,1751214645825,-490.0,0.00021917,2]
[368580229,1751214645835,-490.0,0.00021917,2]
[368580231,1751214645845,-492.019467,0.00021917,2]
[368580233,1751214645855,-490.0,0.00021917,2]
[368580235,1751214645864,-1092.41,0.00021917,2]
[368580237,1751214645874,-490.0,0.00021917,2]
[368580239,1751214645883,-490.0,0.00021917,2]
[368580241,1751214645892,-490.0,0.00021917,2]
[368580243,1751214645902,-490.0,0.00021917,2]
[368580245,1751214645911,-1134.57,0.00021917,2]
[368580247,1751214645920,-490.0,0.00021917,2]
[368580249,1751214645930,-490.0,0.00021917,2]
[368580251,1751214645939,-151.0,0.00021917,2]
[368580253,1751214645948,-490.0,0.00021917,2]
[368580255,1751214645958,-490.0,0.00021917,2]
[368580257,1751214645967,-490.0,0.00021917,2]
[368580259,1751214645977,-490.0,0.00021917,2]
[368580261,1751214645986,-490.0,0.00021917,2]
[368580263,1751214645995,-490.0,0.00021917,2]
[368580265,1751214646004,-490.0,0.00021917,2]
[368580267,1751214646013,-151.0,0.00021917,2]
[368580269,1751214646022,-151.0,0.00021917,2]
[368580271,1751214646031,-490.0,0.00021917,2]
[368580273,1751214646040,-490.0,0.00021917,2]
[368580275,1751214646049,-774.56,0.00021917,2]
[368580277,1751214646059,-308.03097178,0.00021917,2]
[368580279,1751214646068,-490.93230356,0.00021917,2]
[368580281,1751214646077,-545.53555319,0.00021917,2]
[368580283,1751214646087,-490.0,0.00021917,2]
[368580285,1751214646096,-222.01858147,0.00021917,2]
[368580287,1751214646106,-154.230275,0.00021917,2]
[368580289,1751214646115,-490.0,0.00021917,2]
[368580291,1751214646125,-490.0,0.00021917,2]
[368580293,1751214646134,-490.0,0.00021917,2]
[368580295,1751214646143,-490.0,0.00021917,2]
[368580297,1751214646152,-490.0,0.00021917,2]
[368580299,1751214646162,-490.0,0.00021917,2]
[368580301,1751214646171,-490.0,0.00021917,2]
[368580303,1751214646181,-490.0,0.00021917,2]
[368580305,1751214646191,-490.0,0.00021917,2]
[368580307,1751214646200,-1235.41,0.00021917,2]
[368580309,1751214646210,-426.47928043,0.00021917,2]
[368580311,1751214646218,-1600.78,0.00021917,2]
[368580313,1751214646227,-490.0,0.00021917,2]
[368580315,1751214646236,-490.0,0.00021917,2]
[368580317,1751214646245,-677.27,0.00021917,2]
[368580319,1751214646255,-1727.98,0.00021917,2]
[368580321,1751214646264,-490.0,0.00021917,2]
[368580323,1751214646273,-490.0,0.00021917,2]
[368580325,1751214646285,-490.0,0.00021917,2]
[368580327,1751214646294,-490.0,0.00021917,2]